[Event "CZE-tht Extraliga 2018-19"]
[Site "Czech Republic"]
[Date "2018.11.04"]
[Round "2"]
[White "Skalsky, Alexandr"]
[Black "Simek, Petr"]
[Result "1/2-1/2"]
[ECO "C88"]
[WhiteElo "2240"]
[BlackElo "2338"]
[Annotator "NA"]
[PlyCount "63"]
[EventDate "2018.11.03"]
[EventType "team-tourn"]
[EventCountry "CZE"]
[SourceTitle "playchess.com"]
[Source "ChessBase"]
[SourceQuality "1"]
[WhiteTeam "Labortech Ostrava"]
[BlackTeam "Siesta Solution Unichess A"]
[TimeControl "40/5400+30:1800+30"]

1. e4 {[%emt 0:00:00]} e5 {[%emt 0:00:00]} 2. Nf3 {[%emt 0:00:00]} Nc6 {[%emt 0:00:00]} 3. Bb5 {[%emt 0:00:00]} a6 {[%emt 0:00:00]} 4. Ba4 {[%emt 0:00:00]} Nf6 {[%emt 0:00:02]} 5. O-O {[%emt 0:00:00]} Be7 {[%emt 0:00:51]} 6. Re1 {[%emt 0:00:00]} b5 {[%emt 0:00:07]} 7. Bb3 {[%emt 0:00:04]} O-O {[%emt 0:00:08]} 8. a4 {[%emt 0:00:50]} b4 {[%emt 0:00:26]} 9. a5 {[%emt 0:00:10]} d5 {[%emt 0:07:16]} 10. exd5 {[%emt 0:19:23]} e4 {[%emt 0:06:55]} 11. dxc6 {[%emt 0:16:21]} exf3 {[%emt 0:00:11]} 12. g3 {[%emt 0:14:53]} Bc5 {[%emt 0:09:26]} 13. d4 {[%emt 0:14:58]} Bxd4 {[%emt 0:08:45]} 14. Qxf3 {[%emt 0:13:56]} Ng4 {[%emt 0:35:10]} 15. Be3 {[%emt 0:10:10]} Bxb2 {[%emt 0:00:52]} 16. Ra2 {[%emt 0:00:44]} Bf6 {[%emt 0:10:03]} 17. Bc5 {[%emt 0:01:32]} Re8 {[%emt 0:00:05]} 18. Rd1 {[%emt 0:01:02]} Ne5 {[%emt 0:00:06]} 19. Bxf7+ {[%emt 0:02:25]} Kh8 {[%emt 0:02:37]} 20. Qe2 {[%emt 0:00:45]} Bg4 {[%emt 0:01:10]} 21. Rxd8 {[%emt 0:01:00]} Rexd8 {[%emt 0:02:18]} 22. Qe3 {[%emt 0:02:11]} Rd1+ {[%emt 0:02:29]} 23. Kg2 {[%emt 0:00:00]} Nf3 {[%emt 0:05:41]} 24. Qxf3 {[%emt 0:00:04]} Bxf3+ {[%emt 0:00:12]} 25. Kxf3 {[%emt 0:00:03]} Rxb1 {[%emt 0:00:08]} 26. Bc4 {[%emt 0:01:07]} g6 {[%emt 0:02:11]} 27. Ra4 {[%emt 0:00:18]} Bc3 {[%emt 0:02:49]} 28. Bb3 {[%emt 0:00:57]} Rb8 {[%emt 0:01:51]} 29. Bc4 {[%emt 0:00:39]} Ra8 {[%emt 0:01:10]} 30. Bb3 {[%emt 0:00:23]} Rb8 {[%emt 0:01:27]} 31. Bc4 {[%emt 0:00:23]} Ra8 {[%emt 0:00:32]} 32. Bb3 {[%emt 0:01:00]} 1/2-1/2

[Event "CZE-tht Extraliga 2018-19"]
[Site "Czech Republic"]
[Date "2018.11.04"]
[Round "2"]
[White "Pokorny, Petr"]
[Black "Rojicek, Vojtech"]
[Result "0-1"]
[ECO "A48"]
[WhiteElo "2214"]
[BlackElo "2387"]
[Annotator "NA"]
[PlyCount "152"]
[EventDate "2018.11.03"]
[EventType "team-tourn"]
[EventCountry "CZE"]
[SourceTitle "playchess.com"]
[Source "ChessBase"]
[SourceQuality "1"]
[WhiteTeam "Siesta Solution Unichess B"]
[BlackTeam "Beskydská šachová škola"]
[TimeControl "40/5400+30:1800+30"]

1. d4 {[%emt 0:00:00]} Nf6 {[%emt 0:00:00]} 2. Nf3 {[%emt 0:00:00]} g6 {[%emt 0:00:47]} 3. Bf4 {[%emt 0:00:06]} Bg7 {[%emt 0:00:24]} 4. e3 {[%emt 0:00:17]} O-O {[%emt 0:00:27]} 5. Be2 {[%emt 0:01:07]} d6 {[%emt 0:00:18]} 6. h3 {[%emt 0:00:09]} Nfd7 {[%emt 0:00:09]} 7. Bh2 {[%emt 0:00:08]} e5 {[%emt 0:00:13]} 8. c4 {[%emt 0:00:29]} Nc6 {[%emt 0:10:15]} 9. Nc3 {[%emt 0:00:11]} Kh8 {[%emt 0:00:48]} 10. O-O {[%emt 0:00:28]} f5 {[%emt 0:04:17]} 11. Rc1 {[%emt 0:03:17]} e4 {[%emt 0:03:50]} 12. Nd2 {[%emt 0:03:29]} Nf6 {[%emt 0:06:19]} 13. a3 {[%emt 0:04:28]} Ne7 {[%emt 0:00:10]} 14. b4 {[%emt 0:07:29]} g5 {[%emt 0:02:07]} 15. c5 {[%emt 0:16:22]} d5 {[%emt 0:05:26]} 16. b5 {[%emt 0:01:22]} Ng6 {[%emt 0:00:34]} 17. Bh5 {[%emt 0:08:02]} Nxh5 {[%emt 0:08:13]} 18. Qxh5 {[%emt 0:00:04]} Be6 {[%emt 0:04:22]} 19. f4 {[%emt 0:04:47]} gxf4 {[%emt 0:02:20]} 20. Bxf4 {[%emt 0:00:05]} Nxf4 {[%emt 0:00:29]} 21. Rxf4 {[%emt 0:00:03]} Qe8 {[%emt 0:01:53]} 22. Qxe8 {[%emt 0:05:42]} Raxe8 {[%emt 0:00:10]} 23. Re1 {[%emt 0:05:01]} Bh6 {[%emt 0:01:01]} 24. Rf2 {[%emt 0:02:03]} f4 {[%emt 0:01:08]} 25. Nd1 {[%emt 0:00:28]} Bd7 {[%emt 0:05:23]} 26. a4 {[%emt 0:00:57]} a6 {[%emt 0:03:57]} 27. c6 {[%emt 0:04:41]} bxc6 {[%emt 0:00:17]} 28. bxa6 {[%emt 0:00:06]} c5 {[%emt 0:03:49]} 29. Nb3 {[%emt 0:01:51]} cxd4 {[%emt 0:01:28]} 30. exd4 {[%emt 0:03:56]} e3 {[%emt 0:02:06]} 31. Ra2 {[%emt 0:01:33]} Bg7 {[%emt 0:01:31]} 32. Nc3 {[%emt 0:01:58]} f3 {[%emt 0:05:26]} 33. gxf3 {[%emt 0:00:17]} Rxf3 {[%emt 0:00:09]} 34. Nxd5 {[%emt 0:08:38]} Rg3+ {[%emt 0:00:43]} 35. Kh2 {[%emt 0:01:10]} Rxh3+ {[%emt 0:00:33]} 36. Kg2 {[%emt 0:00:13]} c6 {[%emt 0:06:45]} 37. Nc5 {[%emt 0:03:07]} cxd5 {[%emt 0:01:54]} 38. Nxd7 {[%emt 0:00:10]} Rh6 {[%emt 0:00:05]} 39. a5 {[%emt 0:09:03]} Rxa6 {[%emt 0:01:24]} 40. Nb6 {[%emt 0:00:43]} Bxd4 {[%emt 0:01:50]} 41. Nxd5 {[%emt 0:30:51]} Re5 {[%emt 0:34:52]} 42. Nf4 {[%emt 0:03:33]} Rf6 {[%emt 0:00:07]} 43. Rf1 {[%emt 0:00:00]} Ba7 {[%emt 0:00:00]} 44. Rc2 {[%emt 0:00:00]} Rxf4 {[%emt 0:00:00]} 45. Rxf4 {[%emt 0:00:00]} e2 {[%emt 0:00:00]} 46. Rc1 {[%emt 0:00:00]} Be3 {[%emt 0:00:00]} 47. Re1 {[%emt 0:00:00]} Bxf4 {[%emt 0:00:00]} 48. Kf3 {[%emt 0:00:00]} Bg5 {[%emt 0:00:00]} 49. Rxe2 {[%emt 0:00:00]} Rxa5 {[%emt 0:00:00]} 50. Kg4 {[%emt 0:00:00]} Bf6 {[%emt 0:00:00]} 51. Rc2 {[%emt 0:00:00]} Kg7 {[%emt 0:00:00]} 52. Kh3 {[%emt 0:00:00]} Kg6 {[%emt 0:00:00]} 53. Rg2+ {[%emt 0:00:00]} Bg5 {[%emt 0:00:00]} 54. Rf2 {[%emt 0:00:00]} Ra3+ {[%emt 0:00:00]} 55. Kg2 {[%emt 0:00:00]} h5 {[%emt 0:00:00]} 56. Rf3 {[%emt 0:00:00]} Ra4 {[%emt 0:00:00]} 57. Rf2 {[%emt 0:00:00]} Bf4 {[%emt 0:00:00]} 58. Rb2 {[%emt 0:00:07]} Kf5 {[%emt 0:00:00]} 59. Kh3 {[%emt 0:01:08]} Ra3+ {[%emt 0:00:00]} 60. Kg2 {[%emt 0:00:10]} h4 {[%emt 0:00:00]} 61. Rb1 {[%emt 0:01:27]} Ra2+ {[%emt 0:00:00]} 62. Kh1 {[%emt 0:00:08]} Be3 {[%emt 0:00:00]} 63. Re1 {[%emt 0:00:58]} Bf4 {[%emt 0:00:00]} 64. Rb1 {[%emt 0:00:25]} Kg4 {[%emt 0:00:00]} 65. Rg1+ {[%emt 0:00:51]} Kh3 {[%emt 0:00:00]} 66. Rg2 {[%emt 0:00:05]} Ra1+ {[%emt 0:00:00]} 67. Rg1 {[%emt 0:00:09]} Ra3 {[%emt 0:00:00]} 68. Rg2 {[%emt 0:01:41]} Bg3 {[%emt 0:00:00]} 69. Rg1 {[%emt 0:00:12]} Ra2 {[%emt 0:00:00]} 70. Rg2 {[%emt 0:00:08]} Ra1+ {[%emt 0:00:00]} 71. Rg1 {[%emt 0:00:01]} Ra2 {[%emt 0:00:00]} 72. Rg2 {[%emt 0:00:04]} Bf2 {[%emt 0:00:00]} 73. Rh2+ {[%emt 0:00:27]} Kg4 {[%emt 0:00:00]} 74. Rg2+ {[%emt 0:03:07]} Kf3 {[%emt 0:00:00]} 75. Rg8 {[%emt 0:00:34]} Ra1+ {[%emt 0:00:30]} 76. Kh2 {[%emt 0:00:11]} Bg3+ {[%emt 0:00:05]} 0-1

[Event "CZE-tht Extraliga 2018-19"]
[Site "Czech Republic"]
[Date "2018.11.04"]
[Round "2"]
[White "Jascenko, Olga"]
[Black "Rabatin, Jakub"]
[Result "0-1"]
[ECO "E21"]
[WhiteElo "2127"]
[BlackElo "2300"]
[Annotator "NA"]
[PlyCount "74"]
[EventDate "2018.11.03"]
[EventType "team-tourn"]
[EventCountry "CZE"]
[SourceTitle "playchess.com"]
[Source "ChessBase"]
[SourceQuality "1"]
[WhiteTeam "Siesta Solution Unichess B"]
[BlackTeam "Beskydská šachová škola"]
[TimeControl "40/5400+30:1800+30"]

1. d4 {[%emt 0:00:00]} Nf6 {[%emt 0:00:00]} 2. c4 {[%emt 0:00:10]} e6 {[%emt 0:01:01]} 3. Nc3 {[%emt 0:00:16]} Bb4 {[%emt 0:00:21]} 4. Nf3 {[%emt 0:00:47]} b6 {[%emt 0:03:55]} 5. a3 {[%emt 0:03:20]} Bxc3+ {[%emt 0:00:16]} 6. bxc3 {[%emt 0:00:02]} Bb7 {[%emt 0:03:30]} 7. Bg5 {[%emt 0:04:05]} h6 {[%emt 0:00:10]} 8. Bh4 {[%emt 0:01:34]} g5 {[%emt 0:13:38]} 9. Bg3 {[%emt 0:00:22]} Ne4 {[%emt 0:00:10]} 10. Qc2 {[%emt 0:02:28]} d6 {[%emt 0:01:25]} 11. e3 {[%emt 0:02:23]} Nd7 {[%emt 0:00:39]} 12. Nd2 {[%emt 0:04:55]} Nxg3 {[%emt 0:10:18]} 13. hxg3 {[%emt 0:00:06]} f5 {[%emt 0:03:42]} 14. e4 {[%emt 0:05:09]} Qf6 {[%emt 0:02:31]} 15. Bd3 {[%emt 0:05:38]} O-O-O {[%emt 0:02:05]} 16. f3 {[%emt 0:08:19]} Rdf8 {[%emt 0:20:23]} 17. a4 {[%emt 0:08:53]} a5 {[%emt 0:00:43]} 18. Nb3 {[%emt 0:01:51]} fxe4 {[%emt 0:04:18]} 19. Bxe4 {[%emt 0:02:28]} d5 {[%emt 0:00:55]} 20. cxd5 {[%emt 0:04:55]} exd5 {[%emt 0:00:37]} 21. Bd3 {[%emt 0:01:08]} Qd6 {[%emt 0:03:07]} 22. Kf2 {[%emt 0:01:40]} Nf6 {[%emt 0:03:16]} 23. Bf5+ {[%emt 0:00:43]} Kb8 {[%emt 0:00:21]} 24. Nd2 {[%emt 0:00:12]} h5 {[%emt 0:02:51]} 25. Rae1 {[%emt 0:06:31]} h4 {[%emt 0:03:19]} 26. gxh4 {[%emt 0:00:27]} gxh4 {[%emt 0:01:28]} 27. Rh3 {[%emt 0:03:02]} Nh5 {[%emt 0:02:46]} 28. Nf1 {[%emt 0:02:13]} Nf4 {[%emt 0:01:52]} 29. Rh2 {[%emt 0:00:48]} Ba6 {[%emt 0:00:47]} 30. Kg1 {[%emt 0:04:37]} Ne2+ {[%emt 0:06:06]} 31. Kh1 {[%emt 0:03:30]} Qf6 {[%emt 0:03:25]} 32. Bg4 {[%emt 0:01:29]} Re8 {[%emt 0:01:16]} 33. Qd2 {[%emt 0:01:43]} Re7 {[%emt 0:00:48]} 34. g3 {[%emt 0:12:18]} hxg3 {[%emt 0:00:56]} 35. Rxh8+ {[%emt 0:00:33]} Qxh8+ 36. Kg2 {[%emt 0:00:03]} Rh7 {[%emt 0:01:50]} 37. Nxg3 {[%emt 0:00:52]} Rh2+ {[%emt 0:00:08] Kg1 [%clk 0:09:23]} 0-1

[Event "CZE-tht Extraliga 2018-19"]
[Site "Czech Republic"]
[Date "2018.12.01"]
[Round "3"]
[White "Kraus, Tomas"]
[Black "Rojicek, Vojtech"]
[Result "1-0"]
[ECO "B50"]
[WhiteElo "2447"]
[BlackElo "2389"]
[Annotator "NA RC"]
[PlyCount "63"]
[EventDate "2018.11.03"]
[EventType "team-tourn"]
[EventCountry "CZE"]
[SourceTitle "playchess.com"]
[Source "ChessBase"]
[SourceQuality "1"]
[WhiteTeam "Turnov"]
[BlackTeam "Beskydska"]
[TimeControl "40/5400+30:1800+30"]

1. e4 {[%emt 0:00:00]} c5 {[%emt 0:00:17]} 2. Nf3 {[%emt 0:00:27]} d6 {[%emt 0:00:12]} 3. Nc3 {[%emt 0:01:13]} Nf6 {[%emt 0:01:12]} 4. e5 {[%emt 0:00:05]} dxe5 {[%emt 0:01:37]} 5. Nxe5 {[%emt 0:00:29]} e6 {[%emt 0:02:13]} 6. Bb5+ {[%emt 0:03:34]} Bd7 {[%emt 0:12:31] B50: Sicilian: 2...d6, Miscellaneous} (6... Nbd7 7. d4 a6 8. Bxd7+ Nxd7 9. Qh5 Nxe5 10. dxe5 Bd7 11. Bg5 Qc7 12. O-O-O Bc6 13. f4 Be7 14. Bxe7 Qxe7 {½-½ (29) Bernadskiy,V (2583)-Vovk,A (2634) Zhitomir 2017}) 7. Qf3 {[%emt 0:14:44]} Qc7 {[%emt 0:01:48]} 8. Bxd7+ {[%emt 0:19:02]} Nbxd7 {[%emt 0:00:22]} 9. Nc4 {[%emt 0:00:06]} a6 $146 {[%emt 0:06:37]} ({Predecessor:} 9... Nb6 10. Nb5 Qd7 11. Nxb6 axb6 12. a4 Be7 13. b3 Nd5 14. Bb2 Bf6 15. Bxf6 Nxf6 16. O-O O-O 17. d3 Rfd8 18. Rfe1 Qc6 {½-½ (18) Blauhut,H (2352)-Nenciulescu,S (2222) ICCF email 2002}) 10. d3 {[%emt 0:01:11]} Be7 {[%emt 0:12:37]} 11. Bf4 {[%emt 0:10:12]} e5 {[%emt 0:01:42]} 12. Bg5 {[%emt 0:02:40]} O-O {[%emt 0:01:47]} 13. a4 {[%emt 0:02:01]} Rfe8 {[%emt 0:00:54]} 14. O-O {[%emt 0:03:26]} Bf8 {[%emt 0:00:11]} 15. a5 {[%emt 0:01:21]} Re6 {[%emt 0:01:54]} 16. Rfe1 {[%emt 0:01:48]} Rae8 {[%emt 0:01:09]} 17. Re2 {[%emt 0:01:55]} g6 {[%emt 0:02:32]} 18. Ra3 {[%emt 0:04:26]} Bg7 {[%emt 0:03:18]} 19. Rb3 {[%emt 0:01:33]} Rb8 {[%emt 0:02:51]} 20. h3 {[%emt 0:00:41]} Qc8 {[%emt 0:07:51]} 21. Bh4 {[%emt 0:03:27]} Ne8 {[%emt 0:02:50]} 22. Nd5 $16 {[%emt 0:04:16]} f6 {[%emt 0:00:27]} 23. Bg3 {[%emt 0:02:45]} Qc6 {[%emt 0:09:28]} 24. h4 {[%emt 0:00:31]} h5 {[%emt 0:04:52]} 25. Re1 {[%emt 0:02:08]} Kh7 {[%emt 0:00:32]} 26. Bh2 {[%emt 0:02:16]} Bh6 {[%emt 0:02:35]} 27. Ndb6 {[%emt 0:07:24]} Qxf3 {[%emt 0:00:52]} 28. gxf3 {[%emt 0:00:02]} Nxb6 {[%emt 0:06:48]} 29. Nxb6 {[%emt 0:00:12]} Bd2 {[%emt 0:00:21]} 30. Re2 {[%emt 0:00:39]} Bxa5 {[%emt 0:03:41]} 31. Nd7 {[%emt 0:00:18]} Rc8 {[%emt 0:01:09]} 32. Nf8+ {[%emt 0:00:51]} 1-0

[Event "CZE-tht Extraliga 2018-19"]
[Site "Czech Republic"]
[Date "2018.12.01"]
[Round "3"]
[White "Kislinsky, Alexey"]
[Black "Jurcik, Marian"]
[Result "0-1"]
[ECO "B00"]
[WhiteElo "2430"]
[BlackElo "2451"]
[Annotator "RC"]
[PlyCount "86"]
[EventDate "2018.11.03"]
[EventType "team-tourn"]
[EventCountry "CZE"]
[SourceTitle "playchess.com"]
[Source "ChessBase"]
[SourceQuality "1"]
[WhiteTeam "Lysa nad Labem"]
[BlackTeam "Siesta"]
[TimeControl "40/5400+30:1800+30"]

1. e4 {[%emt 0:03:55]} d6 {[%emt 0:00:21]} 2. d4 {[%emt 0:00:18]} Nf6 {[%emt 0:00:22]} 3. Nc3 {[%emt 0:00:08]} e5 {[%emt 0:00:18]} 4. Nf3 {[%emt 0:00:25]} Nbd7 {[%emt 0:00:18]} 5. Bc4 {[%emt 0:00:17]} Be7 {[%emt 0:00:07]} 6. O-O {[%emt 0:00:27]} O-O {[%emt 0:00:17]} 7. a4 {[%emt 0:00:16]} c6 {[%emt 0:01:53]} 8. Ba2 {[%emt 0:01:30]} a5 {[%emt 0:01:22]} 9. h3 {[%emt 0:01:53]} exd4 {[%emt 0:01:32]} 10. Nxd4 {[%emt 0:01:29]} Nc5 {[%emt 0:00:32]} 11. Qf3 {[%emt 0:01:10]} Qb6 {[%emt 0:00:16]} 12. Rd1 {[%emt 0:08:06]} Be6 {[%emt 0:02:15]} 13. Be3 {[%emt 0:01:26]} Qxb2 {[%emt 0:19:43]} 14. Nxc6 {[%emt 0:30:32]} bxc6 {[%emt 0:07:50]} 15. Bxc5 {[%emt 0:00:56]} dxc5 {[%emt 0:03:29]} 16. Rdb1 {[%emt 0:01:39]} Qxc2 {[%emt 0:04:59]} 17. Bxe6 {[%emt 0:00:07]} Rab8 {[%emt 0:09:33]} 18. Ba2 {[%emt 0:19:08]} Rxb1+ {[%emt 0:03:35]} 19. Rxb1 {[%emt 0:00:08]} Bd6 {[%emt 0:03:03]} 20. Bb3 {[%emt 0:05:45]} Qd2 {[%emt 0:00:10]} 21. Rd1 {[%emt 0:02:43]} Qf4 {[%emt 0:00:15]} 22. Qd3 {[%emt 0:02:59]} Qh2+ {[%emt 0:07:18]} 23. Kf1 {[%emt 0:00:06]} Be5 {[%emt 0:00:54]} 24. Ne2 {[%emt 0:02:08]} Qh1+ {[%emt 0:06:14]} 25. Ng1 {[%emt 0:00:06]} Bh2 {[%emt 0:00:20]} 26. Qf3 {[%emt 0:05:20]} Bxg1 {[%emt 0:05:01]} 27. e5 {[%emt 0:05:53]} Nd5 {[%emt 0:08:05]} 28. Bxd5 {[%emt 0:00:17]} cxd5 {[%emt 0:00:02]} 29. Qxd5 {[%emt 0:00:13]} h6 {[%emt 0:01:36]} 30. g3 {[%emt 0:01:26]} Qh2 {[%emt 0:04:15]} 31. Qg2 {[%emt 0:00:08]} Rb8 {[%emt 0:07:06]} 32. Qxg1 {[%emt 0:00:47]} Qxh3+ {[%emt 0:00:13]} 33. Qg2 {[%emt 0:00:05]} Qg4 {[%emt 0:01:08]} 34. Qd5 {[%emt 0:00:08]} Qxa4 {[%emt 0:00:31]} 35. Rd3 {[%emt 0:01:21]} Qb5 {[%emt 0:01:07]} 36. Qd6 {[%emt 0:01:07]} c4 {[%emt 0:00:38]} 37. Rf3 {[%emt 0:00:07]} c3+ {[%emt 0:01:15]} 38. Kg2 {[%emt 0:00:05]} Qb7 {[%emt 0:00:30]} 39. Kh2 {[%emt 0:02:06]} Qxf3 {[%emt 0:00:27]} 40. Qxb8+ {[%emt 0:00:06]} Kh7 {[%emt 0:00:04]} 41. Qb1+ {[%emt 0:30:14]} g6 {[%emt 0:30:15]} 42. e6 {[%emt 0:00:16]} Qxf2+ {[%emt 0:00:54]} 43. Kh3 {[%emt 0:00:12]} c2 {[%emt 0:00:07]} 0-1

[Event "CZE-tht Extraliga 2018-19"]
[Site "Czech Republic"]
[Date "2018.12.01"]
[Round "3"]
[White "Szotkowski, Jakub"]
[Black "Vlasak, Lukas"]
[Result "0-1"]
[ECO "A40"]
[WhiteElo "2357"]
[BlackElo "2401"]
[Annotator "ChessBase"]
[PlyCount "114"]
[EventDate "2018.11.03"]
[EventType "team-tourn"]
[EventCountry "CZE"]
[SourceTitle "playchess.com"]
[Source "ChessBase"]
[SourceQuality "1"]
[WhiteTeam "Beskydska"]
[BlackTeam "Turnov"]
[TimeControl "40/5400+30:1800+30"]

1. d4 {[%emt 0:00:00]} Nf6 {[%emt 0:00:00]} 2. c4 {[%emt 0:00:00]} e6 {[%emt 0:01:13]} 3. g3 {[%emt 0:00:04]} Bb4+ {[%emt 0:01:09]} 4. Bd2 {[%emt 0:00:10]} Be7 {[%emt 0:00:53]} 5. Bg2 {[%emt 0:00:16]} d5 {[%emt 0:01:05]} 6. Qc2 {[%emt 0:00:24]} O-O {[%emt 0:00:39]} 7. Nf3 {[%emt 0:00:07]} c6 {[%emt 0:00:19]} 8. O-O {[%emt 0:00:19]} Nbd7 {[%emt 0:00:22]} 9. Rd1 {[%emt 0:00:20]} b6 {[%emt 0:03:06]} 10. Bf4 {[%emt 0:01:13]} Ba6 {[%emt 0:03:12]} 11. Ne5 {[%emt 0:00:16]} Rc8 {[%emt 0:02:07]} 12. Nc3 {[%emt 0:14:48]} Qe8 {[%emt 0:11:08]} 13. a4 {[%emt 0:05:44]} Nh5 {[%emt 0:17:26]} 14. cxd5 {[%emt 0:18:33]} Nxf4 {[%emt 0:12:35]} 15. Nxd7 {[%emt 0:09:00]} Nxe2+ {[%emt 0:03:29]} 16. Nxe2 {[%emt 0:01:55]} cxd5 {[%emt 0:00:25]} 17. Nc3 {[%emt 0:06:15]} Qxd7 {[%emt 0:00:29]} 18. a5 {[%emt 0:00:29]} Qb7 {[%emt 0:05:52]} 19. axb6 {[%emt 0:05:57]} axb6 {[%emt 0:04:57]} 20. Qa4 {[%emt 0:01:05]} Ra8 {[%emt 0:01:03]} 21. Qb3 {[%emt 0:13:31]} Rfd8 {[%emt 0:04:08]} 22. Ra4 {[%emt 0:05:14]} b5 {[%emt 0:05:14]} 23. Raa1 {[%emt 0:07:32]} b4 {[%emt 0:01:49]} 24. Na4 {[%emt 0:00:31]} Rdc8 {[%emt 0:04:59]} 25. Bf3 {[%emt 0:04:15]} Bb5 {[%emt 0:04:02]} 26. Nc5 {[%emt 0:01:20]} Bxc5 {[%emt 0:00:38]} 27. dxc5 {[%emt 0:00:06]} Bc6 {[%emt 0:02:00]} 28. Rxa8 {[%emt 0:00:42]} Rxa8 {[%emt 0:00:10]} 29. Rd4 {[%emt 0:00:48]} Ra1+ {[%emt 0:03:36]} 30. Kg2 {[%emt 0:00:54]} Qb5 {[%emt 0:01:08]} 31. Bd1 {[%emt 0:00:14]} g6 {[%emt 0:02:07]} 32. Rxb4 {[%emt 0:02:31]} d4+ {[%emt 0:01:35]} 33. f3 {[%emt 0:00:40]} Qxc5 {[%emt 0:00:50]} 34. Rc4 {[%emt 0:00:40]} Qd5 {[%emt 0:01:32]} 35. Be2 {[%emt 0:00:41]} Kg7 {[%emt 0:01:07]} 36. Qb4 {[%emt 0:00:36]} Ra4 {[%emt 0:00:54]} 37. Qb3 {[%emt 0:00:48]} Rxc4 {[%emt 0:00:12]} 38. Bxc4 {[%emt 0:00:06]} Qc5 {[%emt 0:00:43]} 39. Qd3 {[%emt 0:00:21]} e5 {[%emt 0:00:21]} 40. g4 {[%emt 0:00:54]} Qb4 {[%emt 0:00:52]} 41. Qe2 {[%emt 0:00:59]} f6 {[%emt 0:06:59]} 42. g5 {[%emt 0:03:16]} Qc5 {[%emt 0:02:45]} 43. gxf6+ {[%emt 0:00:17]} Kxf6 {[%emt 0:00:02]} 44. Bd3 {[%emt 0:06:22]} Qc1 {[%emt 0:03:07]} 45. b4 {[%emt 0:00:22]} Qg5+ {[%emt 0:00:18]} 46. Kf2 {[%emt 0:01:43]} Qf4 {[%emt 0:01:15]} 47. Kg2 {[%emt 0:00:59]} Qg4+ {[%emt 0:00:13]} 48. Kf2 {[%emt 0:04:31]} Qh3 {[%emt 0:00:20]} 49. b5 {[%emt 0:04:11]} Qxh2+ {[%emt 0:00:41]} 50. Ke1 {[%emt 0:00:08]} Qxe2+ {[%emt 0:00:23]} 51. Kxe2 {[%emt 0:00:31]} Bb7 {[%emt 0:00:10]} 52. Kf2 {[%emt 0:01:33]} Ke6 {[%emt 0:00:29]} 53. Kg3 {[%emt 0:00:20]} Kd6 {[%emt 0:00:25]} 54. Kg4 {[%emt 0:00:36]} Kc5 {[%emt 0:00:13]} 55. Be2 {[%emt 0:00:41]} h6 {[%emt 0:00:15]} 56. Bd3 {[%emt 0:00:10]} Bc8+ {[%emt 0:00:07]} 57. Kg3 {[%emt 0:00:12]} Bf5 {[%emt 0:00:06]} 0-1